bitfinex/quotes_ETHUSD_20220120
["timestamp","ask_amount","ask_price","bid_price","bid_amount"]
[1642705892377,4.629,3243.2,3243.1,47.742987]
[1642705892569,0.0390175,3243.3,3243.1,58.247666]
[1642705892771,0.0390175,3243.3,3243.1,52.295675]
[1642705892772,5.45,3243.2,3243.1,52.295675]
[1642705892965,0.0390175,3243.3,3242.9,3.13992534]
[1642705893166,1.37265193,3243.5,3242.9,3.13992534]
[1642705893167,0.67,3243.2,3243.1,57.29829]
[1642705893367,0.67,3243.2,3243.0,60.35724789]
[1642705893566,0.67,3243.2,3243.0,3.689e-05]
[1642705893567,7.35343228,3243.1,3243.0,3.689e-05]
[1642705893770,7.35343228,3243.1,3240.4,0.15434]
[1642705893771,5.25,3242.8,3239.3,5.39318798]
[1642705893975,0.2511,3242.0,3241.4,8.6697]
[1642705894172,0.2511,3242.0,3239.8,0.25]
[1642705894173,0.3,3241.9,3241.5,0.23498235]
[1642705894372,0.3,3241.9,3241.5,1.70430155]
[1642705894373,10.879,3241.6,3241.5,1.70430155]
[1642705894570,2.325,3243.5,3242.1,4.03114026]
[1642705894766,2.325,3243.5,3241.5,0.00170527]
[1642705894767,6.25,3242.8,3241.5,0.00170527]
[1642705894968,1.46279049,3242.0,3241.8,6.45309999]
[1642705895170,3.77576669,3241.9,3241.8,6.45309999]
[1642705895407,3.77576669,3241.9,3240.0,0.01023162]
[1642705895408,0.34990845,3241.8,3240.0,0.01023162]
[1642705895693,3.0,3241.2,3240.0,0.01023162]
[1642705895889,0.1789,3241.3,3240.0,0.01023162]
[1642705895890,0.37,3241.1,3240.0,0.01023162]
[1642705896093,2.88554268,3241.0,3240.0,0.01023162]
[1642705896292,2.51554268,3240.9,3240.0,0.01023162]
[1642705896502,0.3,3241.2,3240.0,0.01023162]
[1642705896503,0.37,3240.8,3240.0,0.01023162]
[1642705896795,1.0,3241.9,3240.0,0.01023162]
[1642705896796,3.51554268,3241.8,3241.4,6.17433927]
[1642705896993,3.88554268,3241.8,3241.4,6.17433927]
[1642705897193,59.891824,3241.7,3241.4,6.17433927]
[1642705897396,1.12160834,3241.5,3241.4,1.10109155]
[1642705897593,1.12160834,3241.5,3240.0,0.01023162]
[1642705897594,2.9,3241.4,3240.0,0.01023162]
[1642705897797,4.629,3240.1,3239.7,1.24]
[1642705898093,29.95556658,3241.3,3239.7,1.24]
[1642705898094,5.46024252,3239.8,3239.7,1.24]
[1642705898294,4.999,3239.8,3239.7,1.24]
[1642705898595,45.01733529,3239.8,3235.3,1.04565441]
[1642705898796,5.37,3239.7,3238.1,0.01297901]
[1642705898995,53.04095507,3239.7,3238.4,0.0073895]
[1642705899240,0.84897531,3238.6,3238.4,0.0073895]
[1642705899434,1.87883206,3238.5,3238.4,0.0073895]
[1642705899836,0.03365916,3238.6,3238.5,0.119]
[1642705900039,0.03,3241.5,3238.6,0.10285282]
[1642705900040,0.37,3238.7,3238.6,0.10285282]
[1642705900240,2.54554268,3240.7,3238.6,1.04967001]
[1642705900437,0.03568424,3240.7,3238.6,0.00625266]
[1642705900638,0.03568424,3240.7,3238.7,0.00568423]
[1642705900639,50.53052881,3240.6,3238.7,0.00568423]
[1642705900849,50.53052881,3240.6,3240.0,0.008]
[1642705901044,31.66576039,3240.5,3240.3,0.01215105]
[1642705901642,31.63210139,3240.5,3240.3,0.01215105]
[1642705901949,0.03,3240.7,3240.3,0.01215105]
[1642705901950,24.64451142,3240.4,3240.3,0.01215105]
[1642705902143,0.03,3240.7,3240.4,6.3]
[1642705902445,3.0,3244.1,3240.4,6.3]
[1642705902446,0.37,3241.9,3240.7,6.3]
[1642705902642,0.37,3241.9,3240.8,2.6183955]
[1642705902920,5.0,3244.5,3242.8,0.66999151]
[1642705903123,0.37,3244.4,3242.8,0.66999151]
[1642705903320,0.01477901,3243.1,3242.8,0.66999151]
[1642705903521,2.64898694,3243.0,3242.8,9.151e-05]
[1642705903723,100.4157398,3243.0,3242.8,9.151e-05]
[1642705903920,6.31364216,3242.9,3242.8,9.151e-05]
[1642705904120,59.31417016,3242.9,3242.8,9.151e-05]
[1642705904319,14.12966516,3242.9,3242.8,9.151e-05]
[1642705904525,58.41749416,3242.9,3242.8,9.151e-05]
[1642705904724,0.37,3242.9,3242.8,9.151e-05]
[1642705907044,2.82,3242.9,3242.8,9.151e-05]
[1642705907438,6.56695057,3242.9,3242.8,9.151e-05]
[1642705907640,6.56695057,3242.9,3241.2,0.06075872]
[1642705907641,6.61292732,3242.9,3241.2,0.06075872]
[1642705907838,11.24192732,3242.9,3241.1,1.1967]
[1642705908042,2.8559649,3242.9,3241.4,0.01252786]
[1642705908239,6.61292732,3242.9,3241.4,0.01252786]
[1642705908440,1.07497831,3241.8,3241.5,0.00795793]
[1642705908640,1.44497831,3241.8,3241.5,0.00795793]
[1642705908840,0.37,3241.8,3241.5,0.00795793]
[1642705909041,3.79292732,3242.9,3242.2,0.60784037]
[1642705909245,0.37,3242.8,3242.2,0.60784037]
[1642705909443,0.37,3243.0,3242.3,0.07054877]
[1642705909748,1.10513342,3244.6,3244.1,1.86028392]
[1642705909941,1.32634373,3244.5,3244.1,1.86028392]
[1642705910146,0.0073895,3244.4,3244.2,11.9317]
[1642705910385,4.15,3244.3,3244.1,1.10109155]
[1642705910589,4.15,3244.3,3242.6,9.3528]
[1642705910590,6.25,3244.1,3242.6,9.3528]
[1642705910790,6.25,3244.1,3242.5,4.6963]
[1642705910791,4.629,3243.8,3242.5,4.6963]
[1642705911091,4.629,3243.0,3242.5,9.155e-05]
[1642705911290,4.629,3243.0,3240.2,9.5663]
[1642705911291,4.629,3242.6,3240.3,0.01217588]
[1642705911491,4.629,3241.8,3240.3,0.01217588]
[1642705911690,4.629,3241.8,3240.4,0.01307374]
[1642705911691,4.629,3241.0,3240.4,0.01307374]
[1642705911890,4.629,3241.0,3239.4,0.01257869]
[1642705911891,0.02901538,3240.8,3239.4,0.01257869]
[1642705912088,0.37,3240.7,3239.4,0.01257869]
[1642705912300,0.37170527,3240.7,3240.6,4.46297637]
[1642705912489,0.37,3240.7,3240.6,4.46297637]
[1642705913190,0.37,3240.7,3240.6,6.31297637]
[1642705913389,3.79292732,3242.1,3240.6,6.31297637]
[1642705913390,0.37,3241.8,3240.6,8.08606579]
[1642705913589,0.37,3241.8,3241.7,3.11200334]
[1642705913791,0.37,3241.8,3241.7,0.01200334]
[1642705914239,0.00909477,3242.0,3241.7,0.01200334]
[1642705914639,0.03913533,3242.3,3242.1,0.01875795]
[1642705914845,1.11478277,3242.5,3242.1,0.01875795]
[1642705915043,1.11478277,3242.5,3240.7,0.01274383]
[1642705915044,6.3,3242.3,3240.7,0.01274383]
[1642705915243,6.3,3242.3,3240.2,3.88537085]
[1642705915244,0.41819879,3242.2,3240.2,3.88537085]
[1642705915440,3.884234,3242.1,3240.8,0.00625266]
[1642705915639,3.884234,3242.1,3240.2,0.01287608]
[1642705915640,0.37,3242.0,3240.3,0.00909478]
[1642705915842,1.20560141,3241.4,3240.3,0.00909478]
[1642705916342,0.04276754,3241.3,3240.3,0.00909478]
[1642705916539,1.50560141,3241.4,3241.3,0.0010995]
[1642705916939,1.50560141,3241.4,3241.3,0.00451004]
[1642705917139,4.18468905,3241.4,3241.3,0.00451004]
[1642705917989,6.48468905,3241.4,3241.3,0.00451004]
[1642705918188,6.44293402,3241.4,3241.3,0.00451004]
[1642705918591,0.3,3241.4,3241.3,0.00451004]
[1642705918792,54.07647418,3241.6,3241.3,0.00451004]
[1642705918992,0.03895596,3242.2,3241.4,0.02353849]
[1642705919197,17.47256958,3243.6,3241.4,0.08658118]
[1642705919198,3.9210544,3243.5,3241.4,0.08658118]
[1642705919391,17.47046799,3243.4,3241.6,0.0515112]
[1642705919592,0.64454607,3242.5,3241.7,1.21754]
[1642705919791,0.64454607,3242.5,3241.7,2.74597685]
[1642705919792,18.11529748,3242.5,3241.7,2.74597685]
[1642705920195,21.38822059,3242.4,3241.7,2.74597685]
[1642705920596,17.46579836,3242.3,3241.7,2.74597685]
[1642705920996,0.04701334,3242.0,3241.7,2.74597685]
[1642705921393,17.46573176,3242.0,3241.7,2.74597685]
[1642705922040,17.46573176,3242.0,3241.8,0.10285282]
[1642705922237,17.46463251,3242.0,3241.9,0.01239098]
[1642705922436,0.37,3244.7,3241.9,0.01239098]
[1642705922437,0.64448602,3243.3,3242.2,0.04667557]
[1642705922643,2.02876487,3244.1,3242.2,1.26400557]
[1642705922836,2.02876487,3244.1,3242.3,3.58676]
[1642705922837,0.6444519,3244.0,3242.3,3.58676]
[1642705923040,0.64436948,3243.3,3242.4,0.0289541]
[1642705923240,0.6444519,3244.0,3242.5,3.27683]
[1642705923241,0.03991653,3243.4,3242.5,3.27683]
[1642705923442,0.98384516,3242.9,3242.5,3.27683]
[1642705923740,0.00397897,3242.8,3242.5,3.27683]
[1642705923945,53.32074102,3242.8,3242.5,3.27683]
[1642705924241,1.22560266,3242.7,3242.5,3.27683]
[1642705924643,2.40284212,3242.6,3242.5,3.27683]
[1642705924844,1.2577585,3242.7,3242.5,3.27683]
[1642705924845,1.22219211,3242.7,3242.6,4.18834144]
[1642705925150,1.22219211,3242.7,3242.6,6.24787144]
[1642705925992,53.3505872,3242.8,3242.6,6.24787144]
[1642705926193,53.31676205,3242.8,3242.6,6.24787144]
[1642705926798,6.67,3242.7,3242.6,6.24787144]
[1642705926998,7.86844742,3242.7,3242.6,6.24787144]
[1642705927809,10.96844742,3242.7,3242.6,6.24787144]
[1642705929000,4.66844742,3242.7,3242.6,6.24787144]
[1642705930838,8.21844742,3242.7,3242.6,4.18834144]
[1642705931840,10.56844742,3242.7,3242.6,4.18834144]
[1642705932137,8.21844742,3242.7,3242.6,4.18834144]
[1642705934617,4.66844742,3242.7,3242.6,4.18834144]
[1642705934816,7.01844742,3242.7,3242.6,4.18834144]
[1642705935223,7.01844742,3242.7,3241.3,2.3365]
[1642705935224,6.3,3242.5,3241.3,2.3365]
[1642705935427,7.0719,3242.3,3241.3,2.3365]
[1642705935626,0.37,3242.2,3241.3,2.3365]
[1642705935819,0.37,3242.2,3241.4,0.00568423]
[1642705936019,0.84028837,3242.1,3241.4,0.00568423]
[1642705936219,1.76009454,3242.0,3241.4,0.00568423]
[1642705937043,0.77193,3241.9,3241.4,0.00568423]
[1642705937245,0.37,3241.8,3241.4,0.00568423]
[1642705938253,0.03979992,3241.7,3241.4,0.00568423]
[1642705938446,1.57254424,3240.7,3240.6,10.05889427]
[1642705938650,1.57254424,3240.7,3240.6,13.60143603]
[1642705938847,1.36114424,3240.7,3240.6,13.61895573]
[1642705939647,2.15648833,3240.7,3240.6,17.52789547]
[1642705939849,0.00113685,3241.6,3240.9,2.03594094]
[1642705940048,0.00113685,3241.6,3241.0,2.62061299]
[1642705940254,0.00113685,3241.6,3241.0,0.00227369]
[1642705940498,0.00113685,3241.6,3241.1,0.00170527]
[1642705940702,0.00910183,3241.5,3241.0,0.00227369]
[1642705940906,0.37,3241.4,3241.0,0.00227369]
[1642705941103,1.39438847,3241.1,3241.0,0.00227369]
[1642705941300,1.76438847,3241.1,3241.0,0.00227369]
[1642705943710,8.16846593,3241.1,3241.0,0.00227369]
[1642705944147,4.31438847,3241.1,3241.0,0.00227369]
[1642705944740,0.37,3241.1,3241.0,0.00227369]
[1642705945340,2.09669291,3241.2,3241.0,0.00227369]
[1642705945940,0.03329145,3241.3,3241.0,0.00227369]
[1642705946148,2.57696922,3241.4,3241.0,0.00227369]
[1642705946340,1.35444399,3241.4,3241.0,0.00227369]
[1642705946739,1.30444399,3241.4,3241.0,0.00227369]
[1642705946941,1.30444399,3241.4,3241.1,0.05478781]
[1642705947339,1.30444399,3241.4,3241.2,0.00113685]
[1642705947542,0.28333649,3241.4,3241.2,0.00113685]
[1642705947740,0.28333649,3241.4,3241.0,0.07703829]
[1642705947741,0.25,3241.4,3241.0,0.07703829]
[1642705948000,0.37,3241.9,3241.0,0.00227369]
[1642705948202,0.37,3241.9,3241.1,0.00170527]
[1642705948501,0.37,3241.9,3240.9,2.04885505]
[1642705948502,0.01379912,3241.5,3241.0,0.00227369]
[1642705948707,1.15492346,3241.3,3241.0,0.00227369]
[1642705948901,0.0200612,3241.2,3241.0,0.00227369]
[1642705949105,0.37,3241.2,3241.0,0.00227369]
[1642705949502,0.37806046,3241.2,3241.0,0.00227369]
[1642705949701,1.14194,3241.2,3241.0,0.00227369]
[1642705950101,2.14194,3241.2,3241.0,1.00227369]
[1642705950502,8.44194,3241.2,3241.1,0.00170527]
[1642705950704,6.30847516,3241.1,3240.9,9.155e-05]
[1642705950904,6.30847516,3241.1,3239.4,10.0462]
[1642705950905,0.77229,3240.8,3239.4,10.0462]
[1642705951104,0.37,3240.7,3239.4,10.0462]
[1642705951307,6.3,3240.6,3239.4,10.0462]
[1642705951505,0.03066408,3240.4,3239.4,10.0462]
[1642705951776,0.37,3240.3,3239.4,10.0462]
[1642705951963,0.37,3240.3,3239.4,10.05906371]
[1642705952966,4.24974362,3240.3,3239.4,10.05906371]
[1642705953264,4.54974362,3240.3,3239.4,10.05906371]
[1642705953465,7.05589031,3240.2,3239.4,10.05906371]
[1642705953764,4.32589031,3240.2,3239.4,10.05906371]
[1642705953975,0.40039029,3240.2,3239.8,1.09790569]
[1642705954166,0.37,3240.2,3239.8,1.09790569]
[1642705954368,0.00170527,3240.5,3240.2,0.10285282]
[1642705954369,0.03365313,3240.5,3240.2,0.10285282]
[1642705954565,0.03365313,3240.5,3239.8,1.09790569]
[1642705954566,0.00170527,3240.5,3239.8,1.09790569]
[1642705954766,0.00113685,3240.4,3239.8,1.09790569]
[1642705955168,0.91658317,3240.8,3239.8,1.09790569]
[1642705955401,0.00333062,3240.7,3239.8,1.09790569]
[1642705955600,0.00333062,3240.7,3239.5,6.5609]
[1642705955601,1.37284212,3240.7,3239.5,6.5609]
[1642705955800,0.00227369,3240.6,3239.5,6.5609]
[1642705956101,0.37170527,3240.5,3239.5,6.5609]
[1642705956304,1.73596022,3240.4,3239.5,6.5609]
[1642705956510,0.86316825,3240.3,3239.5,6.5609]
[1642705956709,0.37113685,3240.4,3240.1,6.90845396]
[1642705957608,0.37113685,3240.4,3240.1,6.8957]
[1642705957609,1.49924136,3240.3,3240.1,6.8957]
[1642705958009,0.37,3240.2,3240.1,6.8957]
[1642705958207,8.42678138,3240.2,3239.5,6.5609]
[1642705958414,1.08541316,3240.0,3239.5,2.3591]
[1642705958609,6.3,3239.8,3239.4,10.0462]
[1642705958808,4.17678138,3239.7,3239.2,0.52841393]
[1642705959013,1.55454605,3238.3,3237.8,0.01243357]
[1642705959249,0.02836188,3239.6,3237.8,0.01243357]
[1642705959250,0.03638624,3238.4,3237.8,0.01243357]
[1642705959455,0.37,3238.4,3236.9,0.27639994]
[1642705959653,0.37,3238.4,3237.2,1.01873327]
[1642705959654,1.83705975,3238.1,3237.2,1.01873327]
[1642705959855,1.83705975,3238.1,3237.2,0.96873327]
[1642705959856,0.67,3238.0,3237.2,0.96873327]
[1642705960054,0.37,3238.0,3237.2,0.96873327]
[1642705960251,0.04317029,3237.9,3237.2,0.96873327]
[1642705960558,0.37,3238.8,3237.3,2.62250126]
[1642705960753,4.08968,3240.2,3238.6,0.97945205]
[1642705960754,0.37,3239.2,3238.6,0.97945205]
[1642705960951,0.37,3239.2,3238.2,0.01281694]
[1642705960952,0.3,3238.8,3238.2,0.01281694]
[1642705961155,0.3,3239.2,3237.5,9.13930118]
[1642705961350,0.3,3239.2,3238.0,1.23074666]
[1642705961559,0.3,3239.3,3238.3,0.00170527]
[1642705961560,0.00284212,3239.1,3238.3,0.00170527]
[1642705961751,0.00284212,3239.1,3238.0,1.23074666]
[1642705961752,0.00284212,3239.1,3238.1,0.00284211]
[1642705961953,0.0022737,3239.0,3238.1,0.00284211]
[1642705962251,0.3,3239.4,3237.9,0.01254644]
[1642705962252,0.02683096,3238.9,3238.4,0.90579141]
[1642705962454,0.00170527,3238.9,3238.4,0.90579141]
[1642705962659,0.00113685,3238.8,3238.0,0.00341054]
[1642705962928,0.00993497,3238.7,3238.0,0.00341054]
[1642705963116,1.69674275,3238.8,3238.0,0.00341054]
[1642705963117,0.67,3238.8,3238.0,0.00341054]
[1642705963316,0.97,3238.8,3238.0,0.00341054]
[1642705963515,0.67,3238.8,3238.0,0.00341054]
[1642705963714,0.67,3238.8,3238.3,1.16046796]
[1642705963914,0.67,3238.8,3238.4,0.03732228]
[1642705964121,0.67,3238.8,3238.4,0.00113684]
[1642705964717,0.0114304,3238.7,3238.4,0.00113684]
[1642705965118,0.3,3238.7,3238.4,0.02336771]
[1642705965323,0.3,3238.7,3238.4,0.00113684]
[1642705967160,0.05728102,3238.6,3238.4,0.00113684]
[1642705967360,0.05728102,3238.6,3237.9,0.01254644]
[1642705967361,0.05728102,3238.6,3238.0,0.00341054]
[1642705967564,3.1,3238.7,3238.0,0.00341054]
[1642705967760,3.1,3238.7,3238.1,0.05572341]
[1642705967960,3.1,3238.7,3238.0,0.00341054]
[1642705968161,3.1,3238.7,3238.2,0.00227369]
[1642705968363,3.1,3238.7,3238.0,0.00341054]
[1642705968561,3.1,3238.7,3238.1,0.07007374]
[1642705968762,3.1,3238.7,3238.0,0.00341054]
[1642705968961,3.1,3238.7,3238.2,0.00227369]
[1642705969163,3.1,3238.7,3238.0,0.00341054]
[1642705969762,3.1,3238.7,3238.5,0.90338476]
[1642705969964,0.03819581,3239.1,3238.6,6.31209572]
[1642705970168,6.17835,3240.9,3239.0,0.01247158]
[1642705970169,2.34906295,3240.2,3239.0,0.01247158]
[1642705970602,0.00397897,3239.9,3239.0,0.01247158]
[1642705971006,1.55494839,3239.2,3239.0,0.01247158]
[1642705971208,1.09075966,3239.8,3239.0,0.01247158]
[1642705971411,1.08734911,3239.8,3239.0,0.01247158]
[1642705971606,0.00284212,3239.7,3239.0,0.01247158]
[1642705971807,0.81038979,3239.7,3239.0,0.01247158]
[1642705972013,0.3022737,3239.6,3239.0,0.01247158]
[1642705972410,1.2348431,3239.1,3239.0,0.01247158]
[1642705972808,1.2348431,3239.1,3239.0,0.01360842]
[1642705973608,1.2348431,3239.1,3239.0,0.00113684]
[1642705974008,1.2348431,3239.1,3238.6,0.00341054]
[1642705974457,4.1519751,3239.0,3238.6,0.00341054]
[1642705974657,0.37,3239.0,3238.3,0.00511581]
[1642705974852,0.37,3239.0,3237.8,0.01270097]
[1642705975255,4.1519751,3239.0,3237.9,0.0073895]
[1642705975458,1.37499847,3238.2,3237.9,0.0073895]
[1642705975759,1.14227,3239.0,3237.9,0.0073895]
[1642705975760,4.1519751,3238.9,3237.9,0.0073895]
[1642705975958,0.37,3238.9,3237.9,0.0073895]
[1642705976159,0.97,3238.9,3237.9,0.0073895]
[1642705976356,0.67,3238.9,3238.2,1.05348903]
[1642705976758,1.18690009,3238.5,3238.3,0.00511581]
[1642705977060,1.18690009,3238.5,3237.9,0.0073895]
[1642705977061,3.97624114,3238.4,3237.9,0.0073895]
[1642705977903,0.3,3238.4,3237.9,0.0073895]
[1642705978104,1.09972116,3238.0,3237.9,0.0073895]
[1642705978905,1.69972116,3238.0,3237.9,0.0073895]
[1642705979308,2.06972116,3238.0,3237.9,0.0073895]
[1642705979505,2.06972116,3238.0,3237.7,0.00852635]
[1642705979712,2.06972116,3238.0,3237.6,0.00909477]
[1642705980106,0.85622781,3237.7,3237.6,0.00909477]
[1642705980309,1.22622781,3237.7,3237.6,0.00909477]
[1642705980508,1.52622781,3237.7,3237.6,0.00909477]
[1642705982560,5.30820291,3237.7,3237.6,0.00909477]
[1642705982755,1.52622781,3237.7,3237.5,2.96675595]
[1642705982959,1.84551,3237.6,3236.9,4.1877]
[1642705983160,0.37,3237.5,3236.9,4.1877]
[1642705983360,0.67,3237.5,3236.9,4.1877]
[1642705983567,1.90547683,3237.5,3236.9,4.1877]
[1642705983864,0.8049082,3237.4,3237.0,0.00227369]
[1642705984061,0.67,3237.3,3237.0,0.00227369]
[1642705984467,4.8,3237.1,3236.8,2.3511]
[1642705984668,4.8,3237.1,3236.8,1.2038]
[1642705984669,0.37,3237.0,3236.8,1.2038]
[1642705984866,4.05,3236.9,3236.1,0.01221374]
[1642705985075,0.37,3236.8,3236.1,0.01221374]
[1642705985268,1.53614553,3236.3,3236.2,0.00454739]
[1642705985545,0.67,3236.3,3236.2,0.00454739]
[1642705985741,0.37,3236.3,3236.2,0.00454739]
[1642705986241,0.37,3236.3,3236.2,4.95454739]
[1642705986441,0.37,3236.3,3236.2,0.00454739]
[1642705986642,1.66457809,3236.8,3236.2,0.00454739]
[1642705986841,1.62774419,3236.8,3236.2,0.00454739]
[1642705987646,0.7728,3236.7,3236.2,0.00454739]
[1642705987840,0.82430671,3236.5,3236.2,0.00454739]
[1642705988042,1.16974939,3236.3,3236.2,0.00454739]
[1642705988641,1.46974939,3236.3,3236.2,0.00454739]
[1642705989258,1.16974939,3236.3,3236.2,0.00454739]
[1642705989660,1.46974939,3236.3,3236.2,0.00454739]
[1642705989859,1.76974939,3236.3,3236.2,0.00454739]
[1642705991256,1.76974939,3236.3,3236.2,0.0030852]
[1642705992359,5.48583543,3236.3,3236.2,0.0030852]
[1642705992562,5.48583543,3236.3,3235.5,0.00852635]
[1642705992563,6.3,3236.2,3235.5,0.00852635]
[1642705992766,4.1746304,3236.1,3235.5,0.00852635]
[1642705993011,1.2168,3236.1,3235.4,0.00909478]
[1642705993211,1.0,3236.0,3235.4,0.00909478]
[1642705993411,6.3,3235.8,3235.3,4.406]
[1642705993613,1.14331,3235.7,3235.3,4.406]
[1642705993910,5.2,3235.5,3234.4,0.01225846]
[1642705994110,1.91667,3235.4,3234.4,0.01225846]
[1642705994310,1.33300835,3234.9,3234.5,0.00511581]
[1642705994511,1.39224617,3234.9,3234.5,0.00511581]
[1642705994713,1.1433,3234.8,3234.5,0.00511581]
[1642705995109,2.1433,3234.8,3234.3,0.00625266]
[1642705995515,1.04229674,3234.4,3234.3,0.00625266]
[1642705995713,1.44342,3234.4,3234.3,0.00625266]
[1642705995914,0.3,3234.4,3234.3,0.00625266]
[1642705996114,0.3,3234.4,3234.2,0.01262926]
[1642705996313,2.35464164,3235.4,3234.3,0.00625266]
[1642705996516,1.57340131,3234.8,3234.3,0.00625266]
[1642705996772,0.3,3234.8,3234.3,0.00625266]
[1642705997178,1.15824732,3235.2,3234.3,0.00625266]
[1642705997377,1.10962136,3235.3,3233.4,1.5463202]
[1642705997378,0.80962136,3235.3,3233.5,3.77351232]
[1642705997584,15.82583,3237.0,3234.3,0.01290234]
[1642705997585,1.54615,3235.9,3234.3,0.01290234]
[1642705997888,0.00682109,3235.5,3234.3,0.01290234]
[1642705998278,1.54615,3235.9,3234.3,0.01290234]
[1642705998279,3.1,3235.2,3234.3,0.01290234]
[1642705998478,3.1,3235.2,3234.3,0.89425554]
[1642705998479,3.97793732,3235.2,3234.3,0.89425554]
[1642705998677,0.00454739,3235.1,3234.3,0.89425554]
[1642705999079,4.57793732,3235.2,3234.3,0.89425554]
[1642705999080,0.00397897,3235.0,3234.3,0.89425554]
[1642705999377,0.00341055,3234.9,3234.4,0.08515256]
[1642705999581,0.00341055,3234.9,3234.3,0.89425554]
[1642705999780,0.00284212,3234.8,3234.3,0.89425554]
[1642706000082,0.0022737,3234.7,3234.3,0.89425554]
[1642706000519,3.7,3235.2,3234.3,0.89425554]
[1642706000520,0.00170528,3234.6,3234.3,0.89425554]
[1642706000913,0.00113685,3234.5,3234.3,0.89425554]
[1642706001312,3.7,3235.2,3234.3,0.01290234]
[1642706001313,0.00454739,3235.1,3234.3,0.01290234]
[1642706001512,0.00454739,3235.1,3233.5,0.00454738]
[1642706001813,0.00397897,3235.0,3233.7,1.5462089]
[1642706002112,0.00341055,3234.9,3233.8,2.62791521]
[1642706002311,0.82413977,3234.8,3233.8,0.00284211]
[1642706002514,4.55523025,3234.7,3233.9,0.00227369]
[1642706002716,4.55523025,3234.7,3233.8,0.00284211]
[1642706002717,5.73369101,3234.7,3233.8,0.00284211]
[1642706002912,5.73369101,3234.7,3233.7,0.00341054]
[1642706002913,0.77339,3234.4,3233.7,0.00341054]
[1642706003124,3.78772524,3234.3,3233.7,0.00341054]
[1642706003917,0.03320525,3234.4,3233.8,0.10137167]
[1642706004164,0.00170528,3234.6,3233.7,0.00341054]
[1642706004366,0.00170528,3234.6,3233.9,0.00227369]
[1642706004564,4.1220646,3235.0,3233.7,0.00341054]
[1642706004565,0.00113685,3234.5,3233.7,0.00341054]
[1642706004864,0.00341055,3234.9,3233.7,0.00341054]
[1642706005069,0.9473647,3234.9,3234.0,1.08244303]
[1642706005268,0.00284212,3234.8,3234.0,1.08244303]
[1642706005470,0.77332,3234.6,3234.1,0.00113684]
[1642706005677,1.07332,3234.6,3234.1,0.00113684]
[1642706005870,0.77343,3234.4,3233.7,0.00341054]
[1642706006069,0.77343,3234.4,3233.9,0.0039678]
[1642706006070,0.67,3234.3,3233.9,0.0039678]
[1642706006273,0.97,3234.3,3233.9,0.0039678]
[1642706006471,0.97,3234.3,3234.0,0.00170527]
[1642706006875,0.6,3234.3,3234.0,0.00170527]
[1642706007076,0.77342,3234.2,3234.0,0.00170527]
[1642706007777,3.84010558,3234.1,3234.0,0.00170527]
[1642706008011,4.14010558,3234.1,3234.0,0.00170527]
[1642706008216,0.3,3234.1,3234.0,0.00170527]
[1642706008613,1.07342,3234.2,3234.0,0.00170527]
[1642706009713,1.07342,3234.2,3234.0,0.08134994]
[1642706009913,1.07342,3234.2,3234.0,0.00170527]
[1642706010113,1.07342,3234.2,3234.1,0.00113684]
[1642706010324,1.07342,3234.2,3234.0,0.00170527]
[1642706010513,4.87311465,3234.2,3234.1,0.00113684]
[1642706010719,4.87311465,3234.2,3234.0,0.00170527]
[1642706010914,3.72066933,3234.1,3234.0,0.00170527]
[1642706011517,3.72066933,3234.1,3233.4,0.00511581]
[1642706011755,1.3529528,3233.9,3233.4,0.00511581]
[1642706011956,0.7735,3233.8,3233.4,0.00511581]
[1642706012157,1.3735,3233.8,3233.4,0.00511581]
[1642706013458,1.3735,3233.8,3233.5,0.15272184]
[1642706013759,0.3,3233.8,3233.4,0.00511581]
[1642706014159,19.21342,3234.1,3233.4,0.00511581]
[1642706014458,19.21342,3234.1,3233.5,0.06477259]
[1642706014459,18.74,3234.1,3233.5,0.06477259]
[1642706014659,0.77349,3233.9,3233.4,0.00511581]
[1642706014860,1.10663536,3233.9,3233.4,0.00511581]
[1642706015259,0.77351,3233.8,3233.4,0.00511581]
[1642706015707,0.03008184,3233.9,3233.4,0.00511581]
[1642706015911,0.00113685,3234.5,3233.5,0.12047636]
[1642706016106,0.00113685,3234.5,3233.9,0.01210859]
[1642706016506,0.00113685,3234.5,3234.0,0.00170527]
[1642706016706,0.00113685,3234.5,3234.4,6.38638883]
[1642706016907,0.00113685,3234.5,3234.4,5.4]
[1642706017106,0.00113685,3234.5,3234.0,0.00170527]
[1642706017512,3.10113685,3234.5,3234.0,0.00170527]
[1642706018012,3.10113685,3234.5,3233.7,0.00341054]
[1642706018013,18.14,3234.2,3233.7,0.00341054]
[1642706018418,18.14,3234.2,3233.7,0.00259544]
[1642706018419,0.77348,3234.1,3233.7,0.00259544]
[1642706018612,18.51,3234.0,3233.7,0.00259544]
[1642706018813,18.81,3234.0,3233.7,0.00259544]
[1642706019661,18.14,3233.8,3233.7,0.00259544]
[1642706019863,20.5926805,3233.8,3233.6,0.00398191]
[1642706020063,7.09919752,3233.7,3233.6,0.00398191]
[1642706020261,7.76919752,3233.7,3233.6,0.00398191]
[1642706020462,0.77368,3233.4,3232.1,8.33795249]
[1642706020662,0.77368,3233.4,3232.1,4.3986]
[1642706020663,4.67241387,3233.3,3232.1,4.3986]
[1642706020863,0.80680543,3233.2,3232.2,2.63474056]
[1642706021065,1.11706841,3233.0,3232.3,2.62621421]
[1642706021260,0.3,3233.0,3232.3,2.63417213]
[1642706021461,4.38000568,3233.1,3232.4,2.63360371]
[1642706021664,0.6,3233.1,3232.4,2.63360371]
[1642706021862,0.6,3233.1,3232.5,0.00682108]
[1642706022163,1.37368,3233.1,3232.5,2.63303529]
[1642706022369,0.6,3233.1,3232.6,1.09308385]
[1642706022564,0.3,3233.1,3232.7,0.01230651]
[1642706022764,0.3,3233.1,3232.7,0.01799074]
[1642706023013,3.72389297,3233.2,3232.8,0.00511581]
[1642706023213,18.77683518,3233.3,3232.8,0.00511581]
[1642706023414,3.64629274,3233.2,3232.8,0.00511581]
[1642706023618,4.41989274,3233.2,3232.8,0.00511581]
[1642706023815,4.45201066,3233.2,3232.8,0.00511581]
[1642706024015,0.3,3233.1,3232.8,0.00511581]
[1642706025118,0.0242319,3233.0,3232.8,0.00511581]
[1642706025418,1.07365,3233.1,3232.8,0.00511581]
[1642706025618,1.07365,3233.1,3232.9,0.14387523]
[1642706025619,0.3,3233.1,3232.9,0.14387523]
[1642706025817,0.77354,3233.7,3233.0,2.62604633]
[1642706025818,0.0338663,3233.7,3233.0,2.62604633]